bitfinex/quotes_BTCUSD_20241018
["timestamp","ask_amount","ask_price","bid_price","bid_amount"]
[1729253708866,0.00165431,67817.0,67816.0,0.94223272]
[1729253709849,0.00165431,67817.0,67816.0,1.05745013]
[1729253710413,0.00165431,67817.0,67816.0,1.05945013]
[1729253710820,0.00165431,67817.0,67816.0,1.05745013]
[1729253712563,0.00165431,67817.0,67816.0,1.0478093]
[1729253713548,0.00165431,67817.0,67816.0,1.05745125]
[1729253714807,0.00165431,67817.0,67816.0,0.94223384]
[1729253715727,0.00165431,67817.0,67816.0,1.05745125]
[1729253718372,0.00165431,67817.0,67816.0,0.94223384]
[1729253719028,0.00165431,67817.0,67816.0,1.05745125]
[1729253721526,0.00165431,67817.0,67816.0,1.05745062]
[1729253721772,0.00165431,67817.0,67816.0,1.05945062]
[1729253721986,0.00165431,67817.0,67816.0,1.05745062]
[1729253723173,0.00165431,67817.0,67816.0,0.94223321]
[1729253723419,0.00165431,67817.0,67816.0,0.93673321]
[1729253723631,0.09865431,67817.0,67816.0,1.06304909]
[1729253723861,0.09865431,67817.0,67816.0,0.91373321]
[1729253723862,0.17515431,67817.0,67816.0,0.91373321]
[1729253724761,0.17515431,67817.0,67816.0,0.8588839]
[1729253725217,0.17515431,67817.0,67816.0,0.8818839]
[1729253725689,0.17515431,67817.0,67816.0,0.87224258]
[1729253725921,0.17515431,67817.0,67816.0,0.88187793]
[1729253727290,0.17515431,67817.0,67816.0,0.88408984]
[1729253734336,0.17515431,67817.0,67816.0,0.87445449]
[1729253734552,0.17515431,67817.0,67816.0,0.88408312]
[1729253735425,0.17965431,67817.0,67816.0,0.34983169]
[1729253735905,0.17515431,67817.0,67816.0,0.34983169]
[1729253736819,0.17515431,67817.0,67816.0,0.37283169]
[1729253738733,0.17515431,67817.0,67816.0,0.55892138]
[1729253738940,0.17515431,67817.0,67816.0,0.37282848]
[1729253739157,0.17515431,67817.0,67816.0,0.59358553]
[1729253739377,0.17515431,67817.0,67816.0,0.37282848]
[1729253740242,0.17515431,67817.0,67816.0,0.36320306]
[1729253740458,0.17515431,67817.0,67816.0,0.37282815]
[1729253742782,0.17515431,67817.0,67816.0,0.36320306]
[1729253742987,0.17515431,67817.0,67816.0,0.37282788]
[1729253746689,0.17515431,67817.0,67816.0,0.5684972]
[1729253750521,0.17515431,67817.0,67816.0,0.55887238]
[1729253750707,0.17515431,67817.0,67816.0,0.56850295]
[1729253751336,0.00165431,67817.0,67816.0,0.56850295]
[1729253751804,0.00165431,67817.0,67816.0,0.61452975]
[1729253756102,0.00165431,67817.0,67816.0,0.91886043]
[1729253758495,0.00165431,67817.0,67816.0,0.90922986]
[1729253758749,0.00165431,67817.0,67816.0,0.9188676]
[1729253758999,0.00165431,67817.0,67816.0,1.0188676]
[1729253759250,0.00165431,67817.0,67816.0,1.13408501]
[1729253759933,0.00165431,67817.0,67816.0,1.13608501]
[1729253760365,0.00165431,67817.0,67816.0,1.13408501]
[1729253760632,0.00165431,67817.0,67816.0,1.0188676]
[1729253765200,0.00165431,67817.0,67816.0,1.00922986]
[1729253765405,0.00165431,67817.0,67816.0,1.01886474]
[1729253768617,0.00165431,67817.0,67816.0,0.76886474]
[1729253768824,0.18035431,67817.0,67816.0,0.76886474]
[1729253769030,0.18035431,67817.0,67816.0,0.76886517]
[1729253769458,0.18035431,67817.0,67816.0,0.76886525]
[1729253769889,0.18035431,67817.0,67816.0,0.64586525]
[1729253770107,0.18035431,67817.0,67816.0,0.59983845]
[1729253771404,0.18035431,67817.0,67816.0,0.62283845]
[1729253773386,0.18035431,67817.0,67816.0,0.81871179]
[1729253777113,0.18035431,67817.0,67816.0,0.81870869]
[1729253787450,0.18035431,67817.0,67816.0,0.62283535]
[1729253787657,0.18035431,67817.0,67816.0,0.81866789]
[1729253790699,0.18985431,67817.0,67816.0,0.37283535]
[1729253791792,0.18985431,67817.0,67816.0,0.35683535]
[1729253792223,0.18985431,67817.0,67816.0,0.36083535]
[1729253792426,0.18985431,67817.0,67816.0,0.47044802]
[1729253792861,0.18985431,67817.0,67816.0,0.49344802]
[1729253793675,0.18985431,67817.0,67816.0,0.36083535]
[1729253793877,0.18985431,67817.0,67816.0,0.33783535]
[1729253794737,0.18985431,67817.0,67816.0,0.33783448]
[1729253797957,0.18985431,67817.0,67816.0,0.33483448]
[1729253798165,0.18985431,67817.0,67816.0,0.33383448]
[1729253798370,0.18985431,67817.0,67816.0,0.33683448]
[1729253799041,0.18985431,67817.0,67816.0,0.33583448]
[1729253801619,0.45252672,67817.0,67816.0,0.15291608]
[1729253801837,0.46752672,67817.0,67816.0,0.10873702]
[1729253802048,0.46752672,67817.0,67816.0,0.08664543]
[1729253802576,0.46752672,67817.0,67816.0,0.04245578]
[1729253802803,0.46752672,67817.0,67816.0,0.04045578]
[1729253803025,0.46952672,67817.0,67816.0,0.04045578]
[1729253804095,0.46952672,67817.0,67816.0,0.030827]
[1729253804335,0.58698133,67817.0,67816.0,0.030827]
[1729253804758,0.47152672,67817.0,67816.0,0.030827]
[1729253805399,0.46752672,67817.0,67816.0,0.030827]
[1729253805606,0.46752672,67817.0,67816.0,0.031827]
[1729253805816,0.47152672,67817.0,67816.0,0.032827]
[1729253806024,0.46952672,67817.0,67816.0,0.031827]
[1729253806235,0.46752672,67817.0,67816.0,0.030827]
[1729253806446,0.59118133,67817.0,67816.0,0.032827]
[1729253807749,0.58918133,67817.0,67816.0,0.031827]
[1729253807968,0.58918133,67817.0,67816.0,0.032827]
[1729253808177,0.59918133,67817.0,67816.0,0.002827]
[1729253809280,0.47952672,67817.0,67816.0,0.002827]
[1729253812586,0.69674413,67817.0,67816.0,0.002827]
[1729253812813,0.89116729,67817.0,67816.0,0.002827]
[1729253813020,0.77594988,67817.0,67816.0,0.002827]
[1729253813667,0.77594988,67817.0,67808.0,0.03]
[1729253813668,0.17197331,67809.0,67808.0,0.03]
[1729253813894,0.57580813,67809.0,67808.0,0.03]
[1729253814314,0.19620031,67802.0,67801.0,0.03]
[1729253814501,0.45890572,67802.0,67801.0,0.03]
[1729253815787,0.46490572,67802.0,67801.0,0.03]
[1729253820616,0.35590572,67802.0,67801.0,0.02]
[1729253821074,0.48112313,67802.0,67801.0,0.02]
[1729253821307,0.57132313,67802.0,67801.0,0.02]
[1729253821929,0.71678714,67802.0,67801.0,0.02]
[1729253822160,0.71878714,67802.0,67801.0,0.02]
[1729253822370,0.71678714,67802.0,67801.0,0.02]
[1729253822594,0.71878714,67802.0,67801.0,0.02]
[1729253822827,0.86774629,67802.0,67801.0,0.02]
[1729253823034,1.01470544,67802.0,67801.0,0.02]
[1729253823476,1.01170544,67802.0,67801.0,0.02]
[1729253823688,1.02770544,67802.0,67801.0,0.02]
[1729253823919,1.02470544,67802.0,67801.0,0.02]
[1729253824153,1.03870544,67802.0,67801.0,0.021]
[1729253824603,1.02470544,67802.0,67801.0,0.02]
[1729253825032,1.02470544,67802.0,67801.0,0.021]
[1729253825033,1.03870544,67802.0,67801.0,0.021]
[1729253826380,1.03870544,67802.0,67797.0,0.000827]
[1729253826381,0.16199631,67798.0,67797.0,0.000827]
[1729253826597,0.82049028,67798.0,67797.0,0.000827]
[1729253826831,0.74776588,67798.0,67797.0,0.000827]
[1729253827048,0.70527287,67798.0,67797.0,0.000827]
[1729253827696,0.45409631,67798.0,67797.0,0.001827]
[1729253827929,0.58131372,67798.0,67797.0,0.001827]
[1729253828149,0.36609631,67798.0,67797.0,0.001827]
[1729253828360,0.21860031,67798.0,67797.0,0.001827]
[1729253828571,0.03950031,67798.0,67797.0,0.001827]
[1729253828775,0.18699631,67798.0,67797.0,0.001827]
[1729253839894,0.17399631,67798.0,67797.0,0.000827]
[1729253840285,0.17299631,67798.0,67797.0,0.001827]
[1729253840524,0.18399631,67798.0,67797.0,0.002827]
[1729253840734,0.17299631,67798.0,67797.0,0.001827]
[1729253840945,0.18499631,67798.0,67797.0,0.002827]
[1729253843806,0.18499631,67798.0,67797.0,0.032827]
[1729253844908,0.46230958,67798.0,67797.0,0.032827]
[1729253847487,0.46430958,67798.0,67797.0,0.032827]
[1729253847910,0.82848614,67798.0,67797.0,0.032827]
[1729253848601,0.76614347,67798.0,67797.0,0.032827]
[1729253849462,0.26400331,67795.0,67794.0,0.000827]
[1729253849699,0.96715643,67795.0,67794.0,0.000827]
[1729253849904,1.01101742,67795.0,67794.0,0.000827]
[1729253850787,1.01101742,67795.0,67794.0,0.001827]
[1729253850788,1.02501742,67795.0,67794.0,0.001827]
[1729253851205,1.01101742,67795.0,67794.0,0.000827]
[1729253851408,0.33552331,67786.0,67785.0,0.000827]
[1729253851604,0.7219629,67786.0,67785.0,0.000827]
[1729253851872,0.7239629,67786.0,67785.0,0.000827]
[1729253852114,0.76782389,67786.0,67785.0,0.000827]
[1729253853018,0.7219629,67786.0,67785.0,0.000827]
[1729253853504,0.59969987,67786.0,67785.0,0.000827]
[1729253853761,0.50048246,67786.0,67785.0,0.000827]
[1729253853965,0.51248246,67786.0,67785.0,0.000827]
[1729253854174,0.46474072,67786.0,67785.0,0.000827]
[1729253854378,0.47874072,67786.0,67785.0,0.000827]
[1729253855199,0.45074072,67786.0,67785.0,0.000827]
[1729253855609,0.62495485,67786.0,67785.0,0.000827]
[1729253856221,0.61095485,67786.0,67785.0,0.000827]
[1729253856424,0.62495485,67786.0,67785.0,0.000827]
[1729253861197,0.47874072,67786.0,67785.0,0.000827]
[1729253861419,0.26782331,67786.0,67785.0,0.000827]
[1729253861632,0.30524072,67786.0,67785.0,0.000827]
[1729253861847,0.19002331,67786.0,67785.0,0.000827]
[1729253862757,0.03750031,67786.0,67785.0,0.000827]
[1729253862975,0.18502331,67786.0,67785.0,0.000827]
[1729253864102,0.03750031,67786.0,67785.0,0.000827]
[1729253864307,0.17102331,67786.0,67785.0,0.000827]
[1729253864732,0.16702331,67786.0,67785.0,0.000827]
[1729253865203,0.17702331,67786.0,67785.0,0.000827]
[1729253867018,0.02450031,67786.0,67785.0,0.000827]
[1729253867435,0.17202331,67786.0,67785.0,0.000827]
[1729253868358,0.16202331,67786.0,67785.0,0.000827]
[1729253868557,0.15702331,67786.0,67785.0,0.000827]
[1729253868766,0.15902331,67786.0,67785.0,0.000827]
[1729253868972,0.16702331,67786.0,67785.0,0.000827]
[1729253869186,0.17202331,67786.0,67785.0,0.000827]
[1729253871461,0.16702331,67786.0,67785.0,0.000827]
[1729253871664,0.17202331,67786.0,67785.0,0.000827]
[1729253871874,0.16702331,67786.0,67785.0,0.000827]
[1729253872910,0.17202331,67786.0,67785.0,0.000827]
[1729253875351,0.26025468,67786.0,67785.0,0.000827]
[1729253875760,0.17202331,67786.0,67785.0,0.000827]
[1729253884288,0.16702331,67786.0,67785.0,0.000827]
[1729253884495,0.17202331,67786.0,67785.0,0.000827]
[1729253885989,0.17702331,67786.0,67785.0,0.000827]
[1729253886212,0.27622331,67786.0,67785.0,0.000827]
[1729253887815,0.26622331,67786.0,67785.0,0.000827]
[1729253888028,0.27622331,67786.0,67785.0,0.000827]
[1729253890300,0.27622331,67786.0,67785.0,0.000827]
[1729253891239,0.26622331,67786.0,67785.0,0.000827]
[1729253891518,0.27622331,67786.0,67785.0,0.000827]
[1729253893184,0.17702331,67786.0,67785.0,0.000827]
[1729253893922,0.38334468,67786.0,67785.0,0.000827]
[1729253894152,0.27692331,67786.0,67785.0,0.000827]
[1729253894384,0.35892331,67786.0,67785.0,0.000827]
[1729253908652,0.47414072,67786.0,67785.0,0.000827]
[1729253910515,0.02950031,67786.0,67785.0,0.000827]
[1729253911200,0.17702331,67786.0,67785.0,0.000827]
[1729253912272,0.02950031,67786.0,67785.0,0.000827]
[1729253912910,0.17702331,67786.0,67785.0,0.000827]
[1729253913764,0.17202331,67786.0,67785.0,0.000827]
[1729253913981,0.02450031,67786.0,67785.0,0.000827]
[1729253914663,0.01950031,67786.0,67785.0,0.18405283]
[1729253914881,0.01950031,67786.0,67785.0,0.33157775]
[1729253915103,0.01950031,67786.0,67785.0,0.37576151]
[1729253915309,0.01250031,67786.0,67785.0,0.39785339]
[1729253915523,0.01450031,67786.0,67785.0,0.54681254]
[1729253915725,0.00650031,67786.0,67785.0,0.53718679]
[1729253915932,0.0065,67786.0,67785.0,0.53718679]
[1729253916138,0.00950031,67786.0,67785.0,0.53718679]
[1729253916640,0.00650031,67786.0,67785.0,0.54681333]
[1729253916851,0.0045,67786.0,67785.0,0.53918679]
[1729253917067,0.0045,67786.0,67785.0,0.40128488]
[1729253917284,0.15202331,67786.0,67785.0,0.33500924]
[1729253917496,0.00450031,67786.0,67785.0,0.25580924]
[1729253917772,0.00450031,67786.0,67785.0,0.29998429]
[1729253917984,0.0045,67786.0,67785.0,0.44750929]
[1729253918196,0.15202331,67786.0,67785.0,0.005827]
[1729253918437,0.00450031,67786.0,67785.0,0.005827]
[1729253918633,0.15202331,67786.0,67785.0,0.005827]
[1729253918865,0.00450031,67786.0,67785.0,0.005827]
[1729253919093,0.15202331,67786.0,67785.0,0.003827]
[1729253919509,0.15302331,67786.0,67785.0,0.003827]
[1729253919940,0.15302331,67786.0,67785.0,0.000827]
[1729253920155,0.15302331,67786.0,67785.0,0.001827]
[1729253920361,0.0055,67786.0,67785.0,0.001827]
[1729253920578,0.00550031,67786.0,67785.0,0.001827]
[1729253921638,0.0055,67786.0,67785.0,0.001827]
[1729253921844,0.00550031,67786.0,67785.0,0.001827]
[1729253922725,0.0055,67786.0,67785.0,0.001827]
[1729253922940,0.00550031,67786.0,67785.0,0.001827]
[1729253924659,0.15302331,67786.0,67785.0,0.001827]
[1729253924864,0.00550031,67786.0,67785.0,0.001827]
[1729253925525,0.15302331,67786.0,67785.0,0.001827]
[1729253927162,0.0055,67786.0,67785.0,0.149352]
[1729253928369,0.0055,67786.0,67785.0,0.001827]
[1729253928599,0.15302331,67786.0,67785.0,0.001827]
[1729253929077,0.00550031,67786.0,67785.0,0.001827]
[1729253929295,0.15302331,67786.0,67785.0,0.001827]
[1729253932175,0.15302331,67786.0,67785.0,0.001827]
[1729253935051,0.0055,67786.0,67785.0,0.001827]
[1729253937428,0.0055,67786.0,67785.0,0.149352]
[1729253937663,0.0055,67786.0,67785.0,0.15897844]
[1729253938104,0.0055,67786.0,67785.0,0.001827]
[1729253938315,0.0055,67786.0,67785.0,0.15897829]
[1729253938948,0.0055,67786.0,67785.0,0.01145329]
[1729253940205,0.00550031,67786.0,67785.0,0.01145329]
[1729253941043,0.00550031,67786.0,67785.0,0.001827]
[1729253941259,0.00550031,67786.0,67785.0,0.01146026]
[1729253941716,0.0055,67786.0,67785.0,0.01146026]
[1729253941940,0.0055,67786.0,67785.0,0.15898526]
[1729253942144,0.0055,67786.0,67785.0,0.01146026]
[1729253942364,0.00550031,67786.0,67785.0,0.01146026]
[1729253943218,0.15302331,67786.0,67785.0,0.01146026]
[1729253944290,0.0055,67786.0,67785.0,0.01146026]
[1729253944762,0.00550031,67786.0,67785.0,0.01146026]
[1729253945856,0.15302331,67786.0,67785.0,0.01146147]
[1729253947147,0.00550031,67786.0,67785.0,0.01146147]
[1729253949054,0.00550031,67786.0,67785.0,0.01146324]
[1729253949564,0.15302331,67786.0,67785.0,0.01146351]
[1729253950541,0.15302331,67786.0,67785.0,0.001827]
[1729253950786,0.15302331,67786.0,67785.0,0.01146378]
[1729253951427,0.15302331,67786.0,67785.0,0.05563711]
[1729253952717,0.32748448,67786.0,67785.0,0.05563711]
[1729253952963,0.32902331,67786.0,67785.0,0.01146378]
[1729253953173,0.33902331,67786.0,67785.0,0.001827]
[1729253954284,0.33902331,67786.0,67785.0,0.000827]
[1729253954524,0.33802331,67786.0,67785.0,0.000827]
[1729253955006,0.33902331,67786.0,67785.0,0.000827]
[1729253955240,0.36985311,67786.0,67785.0,0.000827]
[1729253955480,0.37885311,67786.0,67785.0,0.000827]
[1729253955964,0.38985311,67786.0,67785.0,0.000827]
[1729253959114,0.38985311,67786.0,67775.0,0.04506304]
[1729253959115,0.33814431,67776.0,67775.0,0.000827]
[1729253959329,0.67057913,67776.0,67775.0,0.000827]
[1729253959565,0.66857913,67776.0,67775.0,0.000827]
[1729253960647,0.68257913,67776.0,67775.0,0.000827]
[1729253961757,0.84553828,67776.0,67775.0,0.000827]
[1729253972150,0.73032087,67776.0,67775.0,0.000827]
[1729253972361,0.84553828,67776.0,67775.0,0.000827]
[1729253974240,0.84753828,67776.0,67775.0,0.000827]
[1729253975236,0.84553828,67776.0,67775.0,0.000827]
[1729253976790,0.84753828,67776.0,67775.0,0.000827]
[1729253978830,0.26206431,67767.0,67766.0,0.000827]
[1729253979086,0.54968172,67767.0,67766.0,0.000827]
[1729253980372,0.56368172,67767.0,67766.0,0.000827]
[1729253980793,0.57768172,67767.0,67766.0,0.000827]
[1729253980979,0.57968172,67767.0,67766.0,0.000827]
[1729253981224,0.58243678,67767.0,67766.0,0.000827]
[1729253981445,0.73139593,67767.0,67766.0,0.000827]
[1729253981678,0.74539593,67767.0,67766.0,0.000827]
[1729253981883,0.86061334,67767.0,67766.0,0.000827]
[1729253982511,0.86261334,67767.0,67766.0,0.000827]
[1729253982728,0.86061334,67767.0,67766.0,0.000827]
[1729253983601,0.74539593,67767.0,67766.0,0.000827]
[1729253984280,0.86061334,67767.0,67766.0,0.000827]
[1729253985338,0.75470605,67767.0,67766.0,0.000827]
[1729253985522,0.87192346,67767.0,67766.0,0.000827]
[1729253986276,0.86992346,67767.0,67766.0,0.000827]
[1729253986488,0.87192346,67767.0,67766.0,0.000827]
[1729253987105,0.86992346,67767.0,67766.0,0.000827]
[1729253988611,0.87192346,67767.0,67766.0,0.000827]
[1729253988821,0.86992346,67767.0,67766.0,0.000827]
[1729253989443,0.87192346,67767.0,67766.0,0.000827]
[1729253989653,0.86992346,67767.0,67766.0,0.000827]
[1729253990494,0.87192346,67767.0,67766.0,0.000827]
[1729253992433,0.75470605,67767.0,67766.0,0.000827]
[1729253992645,0.73795099,67767.0,67766.0,0.000827]
[1729253993054,0.73595099,67767.0,67766.0,0.000827]
[1729253993262,0.73795099,67767.0,67766.0,0.000827]
[1729253993897,0.73595099,67767.0,67766.0,0.000827]
[1729253994115,0.88491014,67767.0,67766.0,0.000827]
[1729253996679,1.00012755,67767.0,67766.0,0.000827]
[1729253996927,0.61142346,67767.0,67766.0,0.000827]
[1729253997174,0.72664087,67767.0,67766.0,0.000827]
[1729254002834,0.84185828,67767.0,67766.0,0.000827]
[1729254003072,0.72664087,67767.0,67766.0,0.000827]
[1729254006804,0.84185828,67767.0,67766.0,0.000827]
[1729254007025,0.99081743,67767.0,67766.0,0.000827]
[1729254008001,0.99281743,67767.0,67766.0,0.000827]
[1729254008686,0.99081743,67767.0,67766.0,0.000827]
[1729254009852,0.99281743,67767.0,67766.0,0.000827]
[1729254013142,1.01592316,67767.0,67766.0,0.000827]
[1729254014167,1.01392316,67767.0,67766.0,0.000827]
[1729254014413,1.01592316,67767.0,67766.0,0.000827]
[1729254014903,1.01392316,67767.0,67766.0,0.000827]
[1729254016956,0.7497466,67767.0,67766.0,0.000827]
[1729254017393,0.86496401,67767.0,67766.0,0.000827]
[1729254017623,1.08572106,67767.0,67766.0,0.000827]
[1729254017848,0.95486766,67767.0,67766.0,0.000827]
[1729254018284,0.910825,67767.0,67766.0,0.000827]
[1729254018494,1.05978415,67767.0,67766.0,0.000827]
[1729254018935,1.05778415,67767.0,67766.0,0.000827]
[1729254019165,1.10184854,67767.0,67766.0,0.000827]
[1729254019368,1.10384854,67767.0,67766.0,0.000827]
[1729254019580,1.10184854,67767.0,67766.0,0.000827]
[1729254019802,1.10384854,67767.0,67766.0,0.000827]
[1729254020052,1.10184854,67767.0,67766.0,0.000827]
[1729254020250,1.05798755,67767.0,67766.0,0.000827]
[1729254020470,0.94277014,67767.0,67766.0,0.000827]
[1729254021157,1.05798755,67767.0,67766.0,0.000827]
[1729254021436,1.05799235,67767.0,67766.0,0.000827]
[1729254021666,1.21339235,67767.0,67766.0,0.000827]
[1729254021856,1.05799235,67767.0,67766.0,0.000827]
[1729254022338,1.01392316,67767.0,67766.0,0.000827]
[1729254022794,0.90070575,67767.0,67766.0,0.000827]
[1729254023025,1.01592316,67767.0,67766.0,0.000827]
[1729254023267,1.08201975,67767.0,67766.0,0.000827]
[1729254024204,1.01592316,67767.0,67766.0,0.000827]
[1729254025005,0.63452919,67767.0,67766.0,0.000827]
[1729254025235,0.19006431,67767.0,67766.0,0.000827]
[1729254026024,0.17606431,67767.0,67766.0,0.000827]
[1729254026265,0.16206431,67767.0,67766.0,0.000827]
[1729254026539,0.17506431,67767.0,67766.0,0.000827]
[1729254026760,0.28606431,67767.0,67766.0,0.000827]
[1729254027818,0.27306431,67767.0,67766.0,0.000827]
[1729254028228,0.28506431,67767.0,67766.0,0.000827]
[1729254029025,0.40028172,67767.0,67766.0,0.000827]
[1729254031718,0.4040938,67767.0,67766.0,0.000827]
[1729254034759,0.6397722,67767.0,67766.0,0.000827]
[1729254034960,0.52455479,67767.0,67766.0,0.000827]
[1729254035198,0.4806938,67767.0,67766.0,0.000827]
[1729254043563,0.78873135,67767.0,67766.0,0.000827]
[1729254043765,0.88913135,67767.0,67766.0,0.000827]
[1729254043992,1.0380905,67767.0,67766.0,0.000827]
[1729254044464,1.0240905,67767.0,67766.0,0.000827]
[1729254044690,1.0260905,67767.0,67766.0,0.000827]
[1729254044947,1.0270905,67767.0,67766.0,0.000827]
[1729254045374,1.0150905,67767.0,67766.0,0.000827]
[1729254045591,1.0130905,67767.0,67766.0,0.000827]
[1729254045717,1.0270905,67767.0,67766.0,0.000827]
[1729254046168,0.98322951,67767.0,67766.0,0.000827]
[1729254046371,0.84827036,67767.0,67766.0,0.000827]
[1729254046580,0.85027036,67767.0,67766.0,0.000827]
[1729254048544,0.84827036,67767.0,67766.0,0.000827]
[1729254049808,0.85027036,67767.0,67766.0,0.000827]
[1729254050016,0.99922951,67767.0,67766.0,0.000827]
[1729254050430,0.84827036,67767.0,67766.0,0.000827]
[1729254051066,0.85027036,67767.0,67766.0,0.000827]
[1729254052529,0.84827036,67767.0,67766.0,0.000827]
[1729254052842,0.73305295,67767.0,67766.0,0.000827]
[1729254054674,0.55805295,67767.0,67766.0,0.000827]
[1729254054900,0.7070121,67767.0,67766.0,0.000827]
[1729254057256,0.7090121,67767.0,67766.0,0.000827]
[1729254057752,0.82422951,67767.0,67766.0,0.000827]
[1729254058455,0.7070121,67767.0,67766.0,0.000827]
[1729254058802,0.82222951,67767.0,67766.0,0.000827]
[1729254060854,0.7070121,67767.0,67766.0,0.000827]
[1729254061060,0.55805295,67767.0,67766.0,0.000827]
[1729254061525,0.67327036,67767.0,67766.0,0.000827]
[1729254061770,0.55805295,67767.0,67766.0,0.000827]
[1729254062233,0.29387639,67767.0,67766.0,0.000827]
[1729254064797,0.4090938,67767.0,67766.0,0.000827]
[1729254068332,0.29387639,67767.0,67766.0,0.000827]
[1729254068766,0.4090938,67767.0,67766.0,0.000827]
[1729254071816,0.55911486,67767.0,67766.0,0.000827]
[1729254072112,0.64211486,67767.0,67766.0,0.000827]
[1729254072559,0.79107401,67767.0,67766.0,0.000827]
[1729254074466,0.6758566,67767.0,67766.0,0.000827]
[1729254074696,0.64105295,67767.0,67766.0,0.000827]
[1729254075161,0.55805295,67767.0,67766.0,0.000827]
[1729254075414,0.44283554,67767.0,67766.0,0.000827]
[1729254075647,0.55805295,67767.0,67766.0,0.000827]
[1729254077553,0.4090938,67767.0,67766.0,0.000827]
[1729254078271,0.29387639,67767.0,67766.0,0.000827]
[1729254078688,0.4090938,67767.0,67766.0,0.000827]
[1729254079727,0.53853748,67767.0,67766.0,0.000827]
[1729254080204,0.4090938,67767.0,67766.0,0.000827]
[1729254085534,0.52431121,67767.0,67766.0,0.000827]
[1729254085753,0.77187036,67767.0,67766.0,0.000827]
[1729254087473,0.55805295,67767.0,67766.0,0.000827]
[1729254088993,0.4090938,67767.0,67766.0,0.000827]
[1729254102846,0.55805295,67767.0,67766.0,0.000827]
[1729254104400,0.4090938,67767.0,67766.0,0.000827]
[1729254104621,0.5063938,67767.0,67766.0,0.000827]
[1729254105767,0.84757036,67767.0,67766.0,0.000827]
[1729254107350,0.84557036,67767.0,67766.0,0.000827]
[1729254107581,0.84757036,67767.0,67766.0,0.000827]
[1729254107805,0.73235295,67767.0,67766.0,0.000827]
[1729254108454,0.73035295,67767.0,67766.0,0.000827]
[1729254110677,0.99452951,67767.0,67766.0,0.000827]
[1729254110896,0.8813121,67767.0,67766.0,0.000827]
[1729254111539,0.99652951,67767.0,67766.0,0.000827]
[1729254112001,0.99452951,67767.0,67766.0,0.000827]
[1729254112219,0.73035295,67767.0,67766.0,0.000827]
[1729254112738,0.84557036,67767.0,67766.0,0.000827]
[1729254113391,0.73035295,67767.0,67766.0,0.000827]
[1729254113612,0.73235295,67767.0,67766.0,0.000827]
[1729254114956,0.73035295,67767.0,67766.0,0.000827]
[1729254116571,0.78814464,67767.0,67766.0,0.000827]
[1729254120835,0.44283554,67767.0,67766.0,0.000827]
[1729254121054,0.29387639,67767.0,67766.0,0.000827]
[1729254124552,0.28387639,67767.0,67766.0,0.000827]
[1729254125451,0.28887639,67767.0,67766.0,0.000827]
[1729254130356,0.4040938,67767.0,67766.0,0.000827]
[1729254131009,0.62485085,67767.0,67766.0,0.000827]
[1729254131216,0.4090938,67767.0,67766.0,0.000827]
[1729254141565,0.5069938,67767.0,67766.0,0.000827]
[1729254146150,1.04379068,67767.0,67766.0,0.000827]
[1729254146363,0.92857327,67767.0,67766.0,0.000827]
[1729254146799,0.77961412,67767.0,67766.0,0.000827]
[1729254149999,0.90429195,67767.0,67766.0,0.000827]
[1729254150671,0.90629195,67767.0,67766.0,0.000827]
[1729254151110,0.90429195,67767.0,67766.0,0.000827]
[1729254151321,0.90629195,67767.0,67766.0,0.000827]
[1729254151546,0.90429195,67767.0,67766.0,0.000827]
[1729254153145,0.92159224,67767.0,67766.0,0.000827]
[1729254154501,0.94469585,67767.0,67766.0,0.000827]
[1729254156563,0.92159224,67767.0,67766.0,0.000827]
[1729254157699,0.90629195,67767.0,67766.0,0.000827]
[1729254158155,0.9504011,67767.0,67766.0,0.000827]
[1729254161573,0.9504011,67767.0,67749.0,0.000828]
[1729254161574,0.25210131,67750.0,67749.0,0.000828]
[1729254161792,0.36731872,67750.0,67749.0,0.000828]
[1729254162023,0.41547698,67750.0,67749.0,0.000828]
[1729254162857,0.42947698,67750.0,67749.0,0.000828]
[1729254163081,0.59243613,67750.0,67749.0,0.000828]
[1729254163296,0.54857496,67750.0,67749.0,0.000828]
[1729254165067,0.52945597,67750.0,67749.0,0.000828]
[1729254171236,0.62397991,67750.0,67749.0,0.000828]
[1729254171937,0.64467338,67750.0,67749.0,0.000828]
[1729254172166,0.68853455,67750.0,67749.0,0.000828]
[1729254174055,0.87503455,67750.0,67749.0,0.000828]
[1729254175020,0.87503455,67750.0,67745.0,0.000827]
[1729254175021,0.15761031,67746.0,67745.0,0.000827]
[1729254175251,0.81710428,67746.0,67745.0,0.000827]
[1729254175712,0.82140132,67746.0,67745.0,0.000827]
[1729254176183,0.83440132,67746.0,67745.0,0.000827]
[1729254176410,0.98336047,67746.0,67745.0,0.000827]
[1729254178026,0.97036047,67746.0,67745.0,0.000827]
[1729254178481,0.99436047,67746.0,67745.0,0.000827]
[1729254178726,0.98336047,67746.0,67745.0,0.000827]
[1729254178951,0.82140132,67746.0,67745.0,0.000827]
[1729254179187,0.83540132,67746.0,67745.0,0.000827]
[1729254179417,0.84940132,67746.0,67745.0,0.000827]
[1729254180113,0.66930132,67746.0,67745.0,0.000827]
[1729254180344,0.55408391,67746.0,67745.0,0.000827]
[1729254180580,0.4388665,67746.0,67745.0,0.000827]
[1729254180863,0.55408391,67746.0,67745.0,0.000827]
[1729254191579,0.66930132,67746.0,67745.0,0.000827]
[1729254191800,0.55408391,67746.0,67745.0,0.000827]
[1729254192006,0.66930132,67746.0,67745.0,0.000827]
[1729254192237,0.55408391,67746.0,67745.0,0.000827]
[1729254196438,0.27990735,67746.0,67745.0,0.000827]
[1729254197308,0.26590735,67746.0,67745.0,0.000827]
[1729254197519,0.16590735,67746.0,67745.0,0.000827]
[1729254197730,0.17990735,67746.0,67745.0,0.000827]
[1729254198169,0.16590735,67746.0,67745.0,0.000827]
[1729254198599,0.15190735,67746.0,67745.0,0.000827]
[1729254198817,0.16590735,67746.0,67745.0,0.000827]
[1729254199178,0.15190735,67746.0,67745.0,0.000827]
[1729254199400,0.16390735,67746.0,67745.0,0.000827]
[1729254199601,0.17690735,67746.0,67745.0,0.000827]
[1729254199989,0.16390735,67746.0,67745.0,0.000827]
[1729254200555,0.17790735,67746.0,67745.0,0.000827]
[1729254207398,0.17790735,67746.0,67745.0,0.41152069]
[1729254207399,0.03029735,67746.0,67745.0,0.41152069]
[1729254207632,0.03029735,67746.0,67745.0,0.323039]
[1729254207860,0.02600031,67746.0,67745.0,0.44326919]
[1729254208100,0.02600031,67746.0,67745.0,0.61984364]